bitfinex/quotes_SOLUSD_20250414
["timestamp","ask_amount","ask_price","bid_price","bid_amount"]
[1744630039401,8.62,132.7,132.69,0.0001]
[1744630040714,8.62,132.7,132.69,82.474]
[1744630041014,253.61233828,132.73,132.69,101.12633828]
[1744630041211,261.14633828,132.73,132.69,101.12633828]
[1744630041392,261.14633828,132.73,132.69,82.474]
[1744630044210,18.65233828,132.72,132.69,82.474]
[1744630044915,26.18703828,132.72,132.69,82.474]
[1744630045212,18.65233828,132.71,132.69,82.474]
[1744630045406,18.65233828,132.7,132.69,82.474]
[1744630045612,18.65233828,132.7,132.69,0.0001]
[1744630046211,37.30198714,132.7,132.69,0.0001]
[1744630046408,37.44414871,132.7,132.69,0.0001]
[1744630047213,45.26417185,132.7,132.68,0.0001]
[1744630047412,45.73627185,132.69,132.68,0.0001]
[1744630047591,45.30978714,132.69,132.68,0.0001]
[1744630047790,7.5357,132.7,132.68,0.0001]
[1744630048007,18.65233828,132.69,132.68,0.0001]
[1744630048416,18.65233828,132.7,132.68,0.0001]
[1744630048911,7.5355,132.71,132.68,0.0001]
[1744630049305,26.18783828,132.71,132.68,0.0001]
[1744630049506,7.5355,132.71,132.68,0.0001]
[1744630050315,26.18713828,132.72,132.68,0.0001]
[1744630050506,261.14663828,132.73,132.68,18.65243828]
[1744630050708,261.14663828,132.73,132.68,101.12633828]
[1744630051098,253.61233828,132.73,132.69,18.65233828]
[1744630051310,253.61233828,132.73,132.69,26.18833828]
[1744630051918,261.14643828,132.73,132.69,26.18833828]
[1744630052105,261.14643828,132.73,132.68,90.0106]
[1744630052306,253.61233828,132.73,132.68,108.66293828]
[1744630052511,253.61233828,132.73,132.69,18.65233828]
[1744630052814,261.14653828,132.73,132.68,108.66293828]
[1744630054220,7.5329,132.75,132.68,108.66293828]
[1744630054409,18.65233828,132.73,132.68,108.66293828]
[1744630055117,34.80523828,132.75,132.7,18.65233828]
[1744630056418,34.80523828,132.75,132.7,26.18783828]
[1744630056618,18.65233828,132.74,132.69,26.18843828]
[1744630057822,34.80523828,132.75,132.7,18.65233828]
[1744630058525,34.80523828,132.75,132.71,26.18753828]
[1744630058526,8.62,132.75,132.71,26.18753828]
[1744630058717,8.62,132.75,132.71,108.66143828]
[1744630060025,16.1529,132.75,132.71,108.66143828]
[1744630060328,27.27233828,132.75,132.71,108.66143828]
[1744630061118,8.62,132.75,132.71,108.66143828]
[1744630061509,8.62,132.75,132.72,18.65233828]
[1744630061719,8.62,132.75,132.71,90.0091]
[1744630061908,8.62,132.75,132.71,108.66143828]
[1744630062403,16.1529,132.75,132.71,108.66143828]
[1744630062606,18.65233828,132.74,132.71,82.4739]
[1744630062905,16.1529,132.75,132.71,82.4739]
[1744630062906,18.65233828,132.73,132.71,82.4739]
[1744630063115,11.65427267,132.74,132.71,82.4739]
[1744630063499,27.80717267,132.75,132.71,82.4739]
[1744630066127,8.62,132.75,132.71,90.0087]
[1744630066427,8.62,132.75,132.73,11.65427267]
[1744630066629,0.063,132.77,132.74,19.18717267]
[1744630066824,0.063,132.77,132.74,101.66107267]
[1744630067012,0.063,132.77,132.74,94.12817267]
[1744630068935,11.71727267,132.77,132.74,82.4739]
[1744630069232,0.063,132.77,132.74,82.4739]
[1744630070812,0.063,132.77,132.74,90.0073]
[1744630071120,0.063,132.77,132.74,82.4739]
[1744630071319,0.063,132.77,132.76,11.65427267]
[1744630071709,0.063,132.77,132.76,94.12817267]
[1744630073123,0.063,132.77,132.76,82.4739]
[1744630075943,0.063,132.77,132.76,101.66047267]
[1744630076321,0.063,132.77,132.76,94.12817267]
[1744630076538,0.063,132.77,132.76,102.08695738]
[1744630077118,0.063,132.77,132.76,104.88160309]
[1744630077636,0.063,132.81,132.79,1.97108471]
[1744630077817,0.063,132.81,132.79,95.60977267]
[1744630078319,0.063,132.81,132.79,94.06517267]
[1744630080642,0.063,132.81,132.79,101.59567267]
[1744630080844,0.063,132.81,132.8,11.65427267]
[1744630081020,0.063,132.81,132.8,94.06517267]
[1744630081620,0.063,132.81,132.77,100.24617267]
[1744630081824,0.063,132.81,132.77,82.4109]
[1744630082020,0.063,132.81,132.77,94.06517267]
[1744630082933,0.063,132.81,132.78,11.65427267]
[1744630084745,0.063,132.81,132.79,11.65427267]
[1744630086525,0.063,132.81,132.8,11.65427267]
[1744630086725,0.063,132.81,132.8,94.49165738]
[1744630087219,0.063,132.81,132.8,82.4109]
[1744630087426,0.063,132.81,132.8,94.06517267]
[1744630088245,0.063,132.81,132.8,101.59527267]
[1744630089341,0.063,132.81,132.8,82.4109]
[1744630094056,0.063,132.81,132.8,81.4109]
[1744630095055,0.063,132.81,132.78,81.4109]
[1744630095231,0.063,132.81,132.78,100.59627267]
[1744630099845,0.063,132.81,132.79,11.65427267]
[1744630100045,0.063,132.81,132.79,93.06517267]
[1744630101161,0.063,132.81,132.79,100.59577267]
[1744630101743,0.063,132.81,132.8,11.65427267]
[1744630101934,0.03,132.82,132.81,82.928]
[1744630102139,0.03,132.82,132.81,116.44853506]
[1744630102944,0.03,132.82,132.81,123.97803506]
[1744630104351,0.0001,132.82,132.81,123.97803506]
[1744630108744,0.03,132.86,132.84,0.14216157]
[1744630109066,0.03,132.86,132.85,11.65427267]
[1744630109756,0.03,132.86,132.84,81.2848]
[1744630109964,0.03,132.86,132.84,92.93907267]
[1744630110762,11.65427267,132.85,132.8,81.2848]
[1744630110960,11.65427267,132.82,132.8,81.2848]
[1744630111372,11.65427267,132.81,132.8,81.2848]
[1744630111548,11.65427267,132.82,132.8,81.2848]
[1744630111748,20.30034886,132.86,132.78,11.65427267]
[1744630111949,11.65427267,132.83,132.78,92.93907267]
[1744630112875,7.5289,132.82,132.78,92.93907267]
[1744630113067,19.18287267,132.83,132.78,100.47017267]
[1744630113579,19.18147267,132.85,132.8,11.65427267]
[1744630113784,9.1776,132.86,132.82,11.65427267]
[1744630113951,1.6507,132.86,132.82,92.93907267]
[1744630114958,1.6507,132.86,132.82,100.46797267]
[1744630115779,0.03,132.86,132.83,11.65427267]
[1744630116289,0.03,132.86,132.85,11.65427267]
[1744630116456,0.03,132.86,132.85,92.93907267]
[1744630116861,0.03,132.86,132.85,100.46627267]
[1744630117061,0.03,132.86,132.85,100.89275738]
[1744630117656,0.03,132.86,132.85,103.68699497]
[1744630118380,0.03,132.86,132.85,122.33664383]
[1744630119795,0.03,132.86,132.85,103.68699497]
[1744630120985,0.03,132.88,132.87,81.2248]
[1744630121219,0.03,132.88,132.87,100.40517267]
[1744630121384,0.03,132.88,132.87,88.7509]
[1744630121582,0.03,132.88,132.87,100.40517267]
[1744630121783,0.03,132.88,132.87,103.19941026]
[1744630123012,0.03,132.88,132.87,122.27554383]
[1744630126313,0.063,132.9,132.89,88.7198]
[1744630126494,0.063,132.9,132.89,100.37407267]
[1744630129610,0.063,132.9,132.89,100.80055738]
[1744630132812,0.063,132.9,132.89,119.45020624]
[1744630133394,0.063,132.9,132.89,103.58282718]
[1744630133693,0.063,132.9,132.89,103.15634247]
[1744630134118,0.063,132.9,132.89,100.37407267]
[1744630134295,0.063,132.9,132.89,88.7198]
[1744630135094,0.063,132.9,132.89,100.37407267]
[1744630136094,0.063,132.9,132.89,92.84907267]
[1744630136519,0.063,132.9,132.89,100.37407267]
[1744630141123,0.063,132.9,132.89,88.7198]
[1744630141298,0.063,132.9,132.89,96.1549782]
[1744630148538,0.063,132.9,132.89,98.9453579]
[1744630149242,0.063,132.9,132.86,81.1948]
[1744630149243,15.6446782,132.9,132.86,81.1948]
[1744630149409,7.4351782,132.87,132.83,7.5281]
[1744630149610,7.4351782,132.86,132.83,88.7229]
[1744630149846,7.4351782,132.87,132.83,88.7229]
[1744630150148,7.4351782,132.85,132.83,81.1948]
[1744630150319,7.4351782,132.85,132.82,0.063]
[1744630151250,18.64964886,132.88,132.82,0.063]
[1744630151457,11.63381371,132.85,132.82,0.063]
[1744630153634,1.5653,132.83,132.82,0.063]
[1744630153840,13.19911371,132.83,132.82,0.063]
[1744630155545,20.72751371,132.83,132.82,0.063]
[1744630156353,1.5653,132.83,132.82,0.063]
[1744630156866,9.0937,132.83,132.82,0.063]
[1744630157038,20.72751371,132.83,132.82,0.063]
[1744630159365,9.0937,132.83,132.82,0.063]
[1744630159549,20.72751371,132.83,132.82,0.063]
[1744630160168,39.37716257,132.83,132.82,0.063]
[1744630160342,18.64964886,132.82,132.81,0.063]
[1744630160536,30.28346257,132.82,132.81,0.063]
[1744630161842,37.81236257,132.82,132.81,0.063]
[1744630162043,37.95452414,132.82,132.81,0.063]
[1744630162341,0.14216157,132.81,132.77,0.063]
[1744630162535,19.90351371,132.78,132.77,0.063]
[1744630163941,27.43471371,132.78,132.77,0.063]
[1744630164151,1.6595,132.78,132.77,0.063]
[1744630164649,8.56,132.8,132.77,0.063]
[1744630164960,20.19381371,132.8,132.77,0.063]
[1744630165150,8.56,132.8,132.77,0.063]
[1744630165547,27.72391371,132.8,132.77,0.063]
[1744630166459,20.19381371,132.8,132.77,0.063]
[1744630166650,8.56,132.8,132.77,92.89161371]
[1744630166845,8.56,132.8,132.78,11.63381371]
[1744630167053,8.56,132.84,132.8,0.28432314]
[1744630167247,8.56,132.84,132.82,11.63381371]
[1744630167437,26.95581371,132.88,132.83,11.63381371]
[1744630167637,7.7963,132.88,132.85,11.63381371]
[1744630167847,1.6538,132.88,132.85,11.63381371]
[1744630168050,19.15911371,132.89,132.85,11.63381371]
[1744630168343,19.15911371,132.89,132.84,11.63381371]
[1744630168564,19.15911371,132.89,132.84,7.5277]
[1744630168565,7.5253,132.89,132.84,7.5277]
[1744630168846,11.63381371,132.88,132.84,19.16151371]
[1744630169770,19.15941371,132.88,132.84,7.5277]
[1744630169949,8.623,132.9,132.85,11.63381371]
[1744630170152,20.25681371,132.9,132.85,11.63381371]
[1744630170860,8.623,132.9,132.85,11.63381371]
[1744630171165,27.78141371,132.9,132.85,19.16091371]
[1744630171469,11.63381371,132.89,132.84,88.7224]
[1744630171644,11.63381371,132.85,132.84,81.1948]
[1744630171967,11.63381371,132.86,132.81,11.63381371]
[1744630172156,7.5876,132.9,132.84,11.91813685]
[1744630172364,11.63381371,132.89,132.84,93.11293685]
[1744630172557,11.63381371,132.88,132.84,81.47912314]
[1744630172759,11.63381371,132.88,132.84,93.11293685]
[1744630173054,11.63381371,132.88,132.84,100.64053685]
[1744630175761,11.63381371,132.88,132.84,81.1948]
[1744630175762,11.63381371,132.86,132.84,81.1948]
[1744630175951,11.63381371,132.85,132.84,81.1948]
[1744630176952,11.63381371,132.85,132.8,81.1948]
[1744630177175,11.63381371,132.84,132.8,81.1948]
[1744630177471,19.16181371,132.84,132.8,81.1948]
[1744630178154,19.16181371,132.84,132.8,92.82861371]
[1744630178360,7.528,132.84,132.8,92.82861371]
[1744630178867,18.8126,132.89,132.82,11.63381371]
[1744630179178,26.3394,132.88,132.82,81.1948]
[1744630179374,11.63381371,132.85,132.82,81.1948]
[1744630179752,18.8139,132.88,132.82,81.1948]
[1744630179964,11.63381371,132.85,132.82,81.1948]
[1744630180571,18.8139,132.88,132.82,81.1948]
[1744630180767,18.8139,132.88,132.82,92.82861371]
[1744630180768,11.63381371,132.87,132.82,92.82861371]
[1744630181277,11.63381371,132.86,132.82,81.1948]
[1744630181772,7.5272,132.86,132.82,92.82861371]
[1744630181947,11.63381371,132.87,132.82,92.82861371]
[1744630182151,19.16021371,132.87,132.82,92.82861371]
[1744630182774,11.63381371,132.86,132.82,81.1948]
[1744630183275,19.16081371,132.86,132.82,81.1948]
[1744630184271,11.63381371,132.85,132.82,81.1948]
[1744630185571,19.16131371,132.85,132.82,81.1948]
[1744630185971,11.63381371,132.84,132.82,81.1948]
[1744630186281,19.16131371,132.85,132.82,81.1948]
[1744630186659,37.6259,132.89,132.82,81.1948]
[1744630186660,26.3376,132.89,132.82,81.1948]
[1744630186975,11.63381371,132.87,132.82,92.82861371]
[1744630187877,19.16031371,132.87,132.82,100.35741371]
[1744630189479,11.63381371,132.86,132.82,92.82861371]
[1744630191380,19.16101371,132.86,132.82,92.82861371]
[1744630191573,19.16101371,132.86,132.82,81.1948]
[1744630191773,19.16101371,132.86,132.82,92.82861371]
[1744630193277,7.5255,132.88,132.83,11.63381371]
[1744630193485,19.15931371,132.88,132.82,100.35741371]
[1744630196482,19.15901371,132.89,132.84,11.63381371]
[1744630196679,19.15901371,132.89,132.84,92.82861371]
[1744630197071,19.15901371,132.89,132.84,81.1948]
[1744630197271,11.63381371,132.88,132.84,81.1948]
[1744630197584,7.5259,132.88,132.84,88.7226]
[1744630197889,19.15971371,132.88,132.84,88.7226]
[1744630198484,19.15971371,132.88,132.84,81.1948]
[1744630199678,19.15971371,132.88,132.84,88.7226]
[1744630200185,19.15971371,132.88,132.84,81.1948]
[1744630200479,11.63381371,132.86,132.82,81.1948]
[1744630200660,11.63381371,132.87,132.82,88.7237]
[1744630200857,0.063,132.9,132.85,0.14216157]
[1744630201076,0.063,132.9,132.88,11.63381371]
[1744630201275,0.063,132.9,132.88,88.63207144]
[1744630201482,0.063,132.9,132.88,81.1948]
[1744630207894,0.063,132.9,132.89,11.90672588]
[1744630208099,0.063,132.9,132.88,81.1948]
[1744630209084,0.063,132.9,132.89,11.90672588]
[1744630209290,0.063,132.9,132.88,81.1948]
[1744630210599,11.62240274,132.89,132.84,82.8056]
[1744630210771,11.62240274,132.87,132.84,90.3333]
[1744630210967,11.62240274,132.88,132.84,90.3333]
[1744630211170,11.62240274,132.89,132.84,101.95570274]
[1744630211574,0.063,132.9,132.87,11.62240274]
[1744630211912,0.063,132.9,132.89,11.90672588]
[1744630212076,0.063,132.9,132.89,12.04888745]
[1744630212281,0.063,132.9,132.89,93.24368745]
[1744630212719,0.063,132.9,132.89,96.04185442]
[1744630213390,0.063,132.9,132.89,103.56685442]
[1744630214206,0.063,132.9,132.89,83.99296697]
[1744630214701,0.063,132.9,132.89,91.51796697]
[1744630214919,0.063,132.9,132.89,83.99296697]
[1744630215105,0.063,132.9,132.89,81.1948]
[1744630215785,0.063,132.9,132.89,89.00412314]
[1744630215990,0.063,132.9,132.89,81.1948]
[1744630216612,0.063,132.9,132.89,100.62652588]
[1744630217204,0.063,132.9,132.89,100.76868745]
[1744630217981,0.063,132.9,132.89,103.5614092]
[1744630220600,0.063,132.9,132.89,95.60992449]
[1744630220805,0.063,132.9,132.89,83.98752175]
[1744630221009,0.063,132.9,132.89,81.1948]
[1744630221388,26.0,132.86,132.8,1.6315]
[1744630221591,11.62240274,132.83,132.81,2.87103097]
[1744630222707,11.62240274,132.83,132.81,0.08]
[1744630222881,11.62240274,132.83,132.79,7.5303]
[1744630223085,19.15080274,132.83,132.79,7.5303]
[1744630224010,8.5,132.88,132.79,7.5303]
[1744630224011,27.314,132.88,132.8,11.76456431]
[1744630224209,27.314,132.88,132.81,11.62240274]
[1744630224510,11.62240274,132.86,132.81,11.62240274]
[1744630224698,11.62240274,132.85,132.8,12.04888745]
[1744630225211,19.15080274,132.83,132.79,88.7251]
[1744630225607,11.62240274,132.84,132.8,0.28432314]
[1744630225800,37.62240274,132.85,132.81,11.62240274]
[1744630226225,37.62240274,132.85,132.8,12.04888745]
[1744630226535,26.0,132.85,132.82,0.28432314]
[1744630226692,11.62240274,132.87,132.82,12.04888745]
[1744630227516,19.14870274,132.87,132.82,19.57748745]
[1744630227815,19.14870274,132.87,132.82,7.95508471]
[1744630228019,11.62240274,132.87,132.82,19.57748745]
[1744630228236,8.5,132.88,132.85,0.28432314]
[1744630228526,0.063,132.9,132.86,11.62240274]
[1744630229098,7.5874,132.9,132.86,11.62240274]
[1744630229625,0.063,132.9,132.86,19.14880274]
[1744630230621,7.5874,132.9,132.86,19.14880274]
[1744630230839,7.5874,132.9,132.86,11.62240274]
[1744630231423,11.62240274,132.87,132.85,81.1948]
[1744630231594,11.62240274,132.88,132.85,81.1948]
[1744630231795,0.063,132.9,132.86,11.76456431]
[1744630231994,0.063,132.9,132.87,11.62240274]
[1744630232297,0.063,132.9,132.89,11.62240274]
[1744630232625,0.063,132.9,132.88,93.10152588]
[1744630233795,0.063,132.9,132.86,92.81720274]
[1744630234209,0.063,132.9,132.86,100.34380274]
[1744630234543,0.063,132.9,132.89,11.62240274]
[1744630234829,0.063,132.9,132.89,93.10152588]
[1744630235623,0.063,132.9,132.89,100.62652588]
[1744630237031,0.063,132.9,132.89,93.10152588]
[1744630237408,0.063,132.9,132.89,100.62652588]
[1744630238830,0.063,132.9,132.89,100.76868745]
[1744630240441,0.063,132.9,132.89,84.27160402]
[1744630241334,0.063,132.9,132.89,83.98728088]
[1744630241715,0.063,132.9,132.89,100.76868745]
[1744630243133,0.063,132.9,132.89,122.21104813]
[1744630244229,0.063,132.9,132.89,110.58864539]
[1744630244529,0.063,132.9,132.89,91.93899653]
[1744630244835,0.063,132.9,132.89,103.56139927]
[1744630246746,0.063,132.9,132.89,122.21104813]
[1744630246918,0.063,132.9,132.89,84.27183496]
[1744630247107,0.063,132.9,132.89,91.79683496]
[1744630247616,0.063,132.9,132.89,122.21104813]
[1744630247803,0.063,132.9,132.89,133.83345087]
[1744630248544,0.03,132.93,132.92,0.14216157]
[1744630248744,0.03,132.93,132.92,102.15208745]
[1744630249035,0.03,132.93,132.92,104.94479927]
[1744630250053,21.74315,133.0,132.94,0.14216157]
[1744630250214,33.36555274,133.0,132.95,11.90672588]
[1744630251120,33.36555274,133.0,132.95,19.42812588]
[1744630252242,27.24335274,133.0,132.95,19.42812588]
[1744630252541,11.62240274,132.99,132.95,0.28432314]
[1744630252748,11.62240274,132.99,132.95,7.80582314]
[1744630252918,27.24325274,133.0,132.95,19.42822588]
[1744630254113,8.10205,133.0,132.97,0.28432314]
[1744630254314,11.68540274,133.01,132.97,81.35312314]
[1744630255415,0.063,133.01,132.99,11.62240274]
[1744630255685,0.063,133.01,132.98,0.42648471]
[1744630255842,0.063,133.01,132.98,0.28432314]
[1744630256220,11.68540274,133.01,132.97,81.0688]
[1744630256420,11.62240274,133.0,132.97,81.0688]
[1744630256719,0.063,133.01,132.97,88.5892]
[1744630256924,11.68540274,133.01,132.97,88.5892]
[1744630257119,11.68540274,133.01,132.97,81.0688]
[1744630258240,0.063,133.01,132.98,11.90672588]
[1744630259146,0.063,133.01,132.98,0.28432314]
[1744630259451,0.063,133.01,133.0,11.90672588]
[1744630259625,0.063,133.01,133.0,92.97552588]
[1744630259828,0.063,133.01,133.0,93.11768745]
[1744630260348,0.063,133.01,133.0,100.63638745]
[1744630260650,0.063,133.01,133.0,119.28603631]
[1744630260858,0.03,133.02,133.01,81.43228471]
[1744630261053,0.03,133.02,133.01,93.05468745]
[1744630262353,0.03,133.02,133.01,119.22253631]
[1744630263642,0.03,133.02,133.01,93.05468745]
[1744630265467,0.03,133.02,133.01,100.57288745]
[1744630265759,0.03,133.02,133.01,119.22253631]
[1744630268038,0.03,133.02,133.01,107.60013357]
[1744630268239,0.03,133.02,133.01,119.22253631]
[1744630270035,0.063,133.03,133.02,81.40228471]
[1744630270437,0.063,133.03,133.02,104.64709019]
[1744630271056,0.063,133.03,133.02,93.02468745]
[1744630271236,0.063,133.03,133.02,80.9758]
[1744630271558,0.063,133.03,133.02,81.26012314]
[1744630271762,0.063,133.03,133.02,80.9758]
[1744630272560,7.48323309,133.03,133.0,80.9758]
[1744630272776,1.5519,133.0,132.91,80.9758]
[1744630273066,1.5519,133.0,132.92,0.08]
[1744630273067,7.42023309,132.93,132.92,0.08]
[1744630273233,11.62124432,132.93,132.92,0.08]
[1744630273659,19.14394432,132.93,132.92,0.08]
[1744630273965,19.14394432,132.93,132.89,0.36432314]
[1744630274165,11.62124432,132.92,132.89,0.36432314]
[1744630274338,11.62124432,132.92,132.89,0.08]
[1744630274840,11.62124432,132.92,132.88,19.14654432]
[1744630275051,11.62124432,132.94,132.89,11.76340589]
[1744630275245,11.62124432,132.93,132.88,19.14654432]
[1744630275643,11.62124432,132.93,132.89,7.525]
[1744630275960,11.62124432,132.92,132.88,7.5255]
[1744630276164,11.62124432,132.92,132.88,19.14674432]
[1744630276550,11.62124432,132.93,132.88,19.14674432]
[1744630277048,11.62124432,132.92,132.88,19.14674432]
[1744630277450,11.62124432,132.93,132.89,11.90556746]
[1744630277964,11.62124432,132.94,132.89,11.90556746]
[1744630278537,7.5212,132.96,132.9,0.14216157]
[1744630278741,13.9543,132.97,132.91,11.90556746]
[1744630278952,11.62124432,132.96,132.91,11.90556746]
[1744630279150,6.4336,132.97,132.92,11.62124432]
[1744630279353,25.57534432,132.97,132.92,11.62124432]
[1744630279764,18.05484432,132.97,132.92,11.62124432]
[1744630281165,6.4336,132.97,132.92,11.62124432]
[1744630281350,18.05484432,132.97,132.92,19.14404432]
[1744630281552,11.62124432,132.98,132.93,11.90556746]
[1744630282370,11.62124432,132.97,132.93,0.28432314]
[1744630282665,11.62124432,132.95,132.91,0.28432314]
[1744630282879,11.62124432,132.96,132.91,11.90556746]
[1744630283378,19.14254432,132.96,132.91,19.42926746]
[1744630283873,11.62124432,132.95,132.91,19.42926746]
[1744630284072,11.62124432,132.95,132.91,7.80802314]
[1744630286478,19.14254432,132.96,132.91,19.42926746]
[1744630286649,11.62124432,132.96,132.91,7.80802314]
[1744630286851,11.62124432,132.97,132.93,0.28432314]
[1744630287069,11.62124432,132.96,132.93,80.9758]
[1744630287668,11.62124432,132.94,132.93,80.9758]
[1744630287972,11.62124432,132.95,132.9,100.12134432]
[1744630289071,19.14234432,132.96,132.91,11.62124432]
[1744630290053,11.62124432,132.95,132.91,7.5236]
[1744630290680,11.62124432,132.95,132.9,100.12124432]
[1744630290973,11.62124432,132.93,132.9,80.9758]
[1744630291171,11.62124432,132.91,132.85,80.9758]
[1744630291373,11.62124432,132.91,132.86,11.70124432]
[1744630291674,1.6072,132.92,132.87,11.76340589]
[1744630291675,11.62124432,132.92,132.87,11.76340589]
[1744630292182,11.62124432,132.92,132.88,7.5255]
[1744630293275,15.9823,132.94,132.89,11.62124432]
[1744630293583,27.60354432,132.94,132.89,11.62124432]
[1744630294382,11.62124432,132.93,132.89,19.14614432]
[1744630294696,11.62124432,132.93,132.89,7.5249]
[1744630294979,11.62124432,132.93,132.88,19.14654432]
[1744630296490,19.14394432,132.93,132.88,100.12234432]
[1744630296992,19.14394432,132.93,132.88,88.5011]
[1744630297164,19.14394432,132.93,132.88,100.12234432]
[1744630299178,11.62124432,132.91,132.88,88.5013]
[1744630299360,7.5227,132.93,132.88,88.5013]
[1744630299560,11.62124432,132.92,132.88,88.5013]
[1744630300589,7.5227,132.93,132.88,88.5013]
[1744630300779,11.62124432,132.92,132.88,88.5013]
[1744630301783,11.62124432,132.93,132.88,100.12254432]
[1744630303290,19.14424432,132.93,132.88,100.12254432]
[1744630303995,11.62124432,132.92,132.88,100.12254432]
[1744630304490,19.14464432,132.92,132.88,100.12254432]
[1744630304785,7.5234,132.92,132.88,88.5013]
[1744630304975,11.62124432,132.92,132.88,88.5013]
[1744630305171,8.46,132.94,132.88,88.5013]
[1744630305172,15.9824,132.94,132.88,100.12254432]
[1744630305377,27.60364432,132.94,132.89,11.62124432]
[1744630306882,27.60364432,132.94,132.89,19.14594432]
[1744630307278,23.41823939,132.94,132.89,7.5247]
[1744630307484,7.43583939,132.91,132.88,88.5011]
[1744630308191,7.43583939,132.91,132.88,7.5253]
[1744630308686,14.95973939,132.91,132.87,7.5258]
[1744630309396,7.43583939,132.88,132.84,0.063]
[1744630309596,7.43583939,132.86,132.84,0.063]
[1744630309785,7.43583939,132.85,132.84,0.063]
[1744630310092,7.43583939,132.86,132.84,0.063]
[1744630310292,1.6169,132.89,132.84,0.063]
[1744630310498,7.43583939,132.87,132.84,0.063]
[1744630310990,14.96193939,132.87,132.84,0.063]
[1744630311291,19.15718344,132.87,132.84,0.063]
[1744630311871,11.63108344,132.86,132.84,0.063]
[1744630312068,11.63108344,132.85,132.84,0.063]
[1744630312272,0.28432314,132.84,132.83,0.0001]
[1744630312531,1.6477,132.82,132.77,0.063]
[1744630312668,8.44,132.81,132.77,0.063]
[1744630312868,20.07108344,132.81,132.77,0.063]
[1744630313094,27.60078344,132.81,132.77,0.063]
[1744630313493,11.63108344,132.8,132.77,0.063]
[1744630313696,15.9697,132.81,132.77,0.063]
[1744630313892,15.9697,132.81,132.77,11.69408344]
[1744630314088,27.60078344,132.81,132.77,0.063]
[1744630315398,8.44,132.81,132.77,11.69408344]
[1744630316289,8.44,132.81,132.77,19.22548344]
[1744630316720,20.07108344,132.81,132.77,19.22548344]
[1744630317085,20.07108344,132.81,132.77,7.5944]
[1744630317498,20.07108344,132.81,132.77,19.22548344]
[1744630318712,27.60068344,132.81,132.77,7.5944]
[1744630319010,27.60068344,132.81,132.77,19.22548344]
[1744630319502,20.07108344,132.81,132.77,19.22548344]
[1744630319709,11.63108344,132.81,132.77,19.22548344]
[1744630320217,19.16028344,132.82,132.77,19.22548344]
[1744630320391,8.44,132.85,132.79,11.63108344]
[1744630320590,11.63108344,132.84,132.8,19.16058344]
[1744630321116,27.59858344,132.85,132.8,19.16058344]
[1744630322110,11.63108344,132.82,132.77,0.063]
[1744630322322,26.0,132.81,132.77,11.69408344]
[1744630322494,11.63108344,132.83,132.79,11.63108344]
[1744630322693,11.63108344,132.84,132.79,11.63108344]
[1744630323212,8.44,132.87,132.81,11.63108344]
[1744630323413,8.44,132.91,132.85,11.63108344]
[1744630323606,11.63108344,132.9,132.85,11.63108344]
[1744630323921,11.63108344,132.9,132.86,19.15778344]
[1744630324215,11.63108344,132.9,132.86,11.63108344]
[1744630324404,11.63108344,132.9,132.85,11.63108344]
[1744630324610,11.63108344,132.88,132.83,94.23108344]
[1744630325019,11.63108344,132.89,132.84,11.63108344]
[1744630325198,11.63108344,132.9,132.85,11.63108344]
[1744630326096,8.44,132.91,132.87,11.63108344]
[1744630326412,8.44,132.91,132.88,11.63108344]
[1744630326613,246.27108344,132.94,132.9,11.63108344]
[1744630327021,234.64,132.94,132.9,11.63108344]
[1744630327230,8.44,132.95,132.91,11.63108344]
[1744630328214,11.63108344,132.97,132.93,11.63108344]
[1744630328420,20.07108344,132.99,132.94,11.63108344]
[1744630328725,7.5803,133.03,132.98,11.63108344]
[1744630328930,11.63108344,133.01,132.96,11.91540658]
[1744630329423,11.63108344,133.01,132.96,0.28432314]
[1744630329621,11.63108344,133.01,132.96,11.91540658]
[1744630329806,11.63108344,133.01,132.96,11.63108344]
[1744630330009,26.0,133.0,132.95,11.91540658]
[1744630330203,45.15028344,133.0,132.95,11.91540658]